bitfinex-derivatives/quotes_SOLF0:USTF0_20250221
["timestamp","ask_amount","ask_price","bid_price","bid_amount"]
[1740127255898,0.03933322,177.06,177.04,5.6466]
[1740127256298,0.03933322,177.06,177.03,0.02674266]
[1740127256597,0.03933322,177.06,177.03,5.67344266]
[1740127256795,0.03933322,177.06,177.03,0.02674266]
[1740127256996,0.03933322,177.06,177.04,5.6466]
[1740127257699,0.03933322,177.06,177.03,0.02674266]
[1740127257893,0.03933322,177.06,177.03,5.67354266]
[1740127258294,0.03933322,177.06,177.03,0.02674266]
[1740127258501,0.03933322,177.06,177.04,5.6465]
[1740127261309,0.03933322,177.06,177.03,5.67354266]
[1740127262999,0.03933322,177.06,177.03,0.02674266]
[1740127263206,0.03933322,177.06,177.04,5.6465]
[1740127264910,0.03933322,177.06,177.03,0.02674266]
[1740127265103,5.68533322,177.06,177.03,0.02674266]
[1740127265912,5.68533322,177.06,177.03,5.67364266]
[1740127266108,5.68533322,177.06,177.03,0.02674266]
[1740127266305,5.68533322,177.06,177.03,5.67364266]
[1740127266707,5.6463,177.05,177.03,0.02674266]
[1740127269118,0.03933322,177.06,177.03,0.02674266]
[1740127269616,0.03933322,177.06,177.03,5.67344266]
[1740127269914,0.03933322,177.06,177.03,0.02674266]
[1740127270119,0.03933322,177.06,177.04,15.45403047]
[1740127270316,0.03933322,177.06,177.05,5.6463]
[1740127272116,0.03933322,177.06,177.03,0.02674266]
[1740127273421,5.6466,177.04,177.03,0.02674266]
[1740127274618,5.68543322,177.06,177.03,0.02674266]
[1740127275717,0.03933322,177.06,177.03,0.02674266]
[1740127275923,0.03933322,177.06,177.05,5.6463]
[1740127276921,7.46,177.12,177.03,1.76854266]
[1740127277121,198.6438,177.13,177.09,5.6449]
[1740127277122,5.6438,177.13,177.09,5.6449]
[1740127277317,5.6438,177.13,177.04,15.45403047]
[1740127277714,15.45403047,177.15,177.04,15.45403047]
[1740127277919,5.6446,177.11,177.06,5.6457]
[1740127278120,5.68786878,177.11,177.08,0.03577538]
[1740127278832,5.6448,177.1,177.08,0.03577538]
[1740127279031,0.04326878,177.11,177.08,0.03577538]
[1740127279323,0.04326878,177.11,176.92,193.0]
[1740127279324,15.45403047,177.09,176.98,108.41742188]
[1740127279531,15.45403047,177.09,177.01,7.67481756]
[1740127279925,5.6457,177.07,177.01,7.67481756]
[1740127280121,1.6824,177.1,177.01,23.12884803]
[1740127280321,15.45403047,177.12,177.04,0.0303005]
[1740127280630,0.04095444,177.07,177.06,5.6457]
[1740127280824,15.45403047,177.12,177.06,5.6457]
[1740127281026,0.03846733,177.08,177.06,5.6457]
[1740127281226,0.03846733,177.08,177.04,0.0303005]
[1740127281424,0.03846733,177.08,177.07,5.6456]
[1740127281728,0.03846733,177.08,177.04,0.0303005]
[1740127282224,0.03846733,177.08,177.07,5.6456]
[1740127282833,0.03846733,177.08,177.04,0.0303005]
[1740127283433,0.03846733,177.08,177.05,5.646]
[1740127284236,5.68406733,177.08,177.04,5.6768005]
[1740127284833,0.03846733,177.08,177.04,0.0303005]
[1740127286335,0.03846733,177.08,177.06,5.6456]
[1740127287934,0.03846733,177.08,177.07,5.6456]
[1740127289939,6.733e-05,177.08,177.07,5.6456]
[1740127311851,6.733e-05,177.08,177.04,0.0303005]
[1740127312952,1.70176733,177.08,177.04,0.0303005]
[1740127313152,5.6463,177.05,177.04,0.0303005]
[1740127313357,15.45403047,177.06,176.98,30.93640292]
[1740127314358,15.45403047,177.06,177.01,5.6473]
[1740127314656,0.0382027,177.04,177.0,0.03839999]
[1740127314858,0.0382027,177.04,177.02,5.6472]
[1740127315055,0.0382027,177.04,177.0,0.03839999]
[1740127315754,0.0382027,177.04,177.03,5.6469]
[1740127318758,2.7e-06,177.04,177.03,5.6469]
[1740127319354,2.7e-06,177.04,177.0,0.03839999]
[1740127319963,2.7e-06,177.04,177.01,5.6473]
[1740127320270,2.7e-06,177.04,177.0,0.03839999]
[1740127320465,2.7e-06,177.04,177.02,5.6472]
[1740127321566,2.7e-06,177.04,177.0,0.03839999]
[1740127321765,2.7e-06,177.04,177.03,5.6469]
[1740127333983,1.6804,177.13,177.11,5.6441]
[1740127334186,1.775,177.14,177.05,15.45403047]
[1740127334478,15.45403047,177.18,177.16,5.6426]
[1740127334683,1.7621,177.19,177.16,5.6426]
[1740127335184,1.80238173,177.19,177.16,5.67959099]
[1740127335685,1.80238173,177.19,177.16,0.03699099]
[1740127336081,0.04028173,177.19,177.16,0.03699099]
[1740127336284,0.04028173,177.19,177.18,5.6421]
[1740127337579,0.04028173,177.19,177.16,0.03699099]
[1740127338485,0.04028173,177.19,177.16,5.67969099]
[1740127338685,0.04028173,177.19,177.16,0.03699099]
[1740127339283,5.68238173,177.19,177.16,0.03699099]
[1740127339485,0.04028173,177.19,177.16,0.03699099]
[1740127339683,15.45403047,177.18,177.05,17.18153047]
[1740127339883,5.6437,177.14,177.1,5.6446]
[1740127340085,1.8258,177.17,177.05,17.18153047]
[1740127340385,5.6428,177.16,177.11,5.6441]
[1740127340783,0.03866286,177.15,177.12,0.03961171]
[1740127342085,0.03866286,177.15,177.14,5.6434]
[1740127343684,6.286e-05,177.15,177.14,5.6434]
[1740127345488,6.286e-05,177.15,177.14,21.09743047]
[1740127346380,6.286e-05,177.15,177.14,5.6434]
[1740127357991,6.286e-05,177.15,177.14,21.09743047]
[1740127358299,6.286e-05,177.15,177.14,5.6434]
[1740127360599,6.286e-05,177.15,177.14,15.55193364]
[1740127366095,6.286e-05,177.15,177.14,5.6434]
[1740127367105,6.286e-05,177.15,177.14,15.55193364]
[1740127375609,6.286e-05,177.15,177.14,5.6434]
[1740127375808,6.286e-05,177.15,177.12,5.68361171]
[1740127376113,9.90853364,177.14,177.12,5.68361171]
[1740127376407,9.90853364,177.14,177.12,0.03961171]
[1740127376614,9.90853364,177.14,177.13,5.6437]
[1740127377209,6.286e-05,177.15,177.13,5.6437]
[1740127378214,6.286e-05,177.15,177.14,5.6434]
[1740127379514,5.64316286,177.15,177.12,0.03961171]
[1740127379712,6.286e-05,177.15,177.12,0.03961171]
[1740127379911,9.9085965,177.15,177.12,0.03961171]
[1740127380114,9.9085965,177.15,177.13,5.6436]
[1740127380616,6.286e-05,177.15,177.14,5.6434]
[1740127393231,298.94,177.14,176.95,232.40847853]
[1740127393533,298.94,177.14,176.9,45.35683508]
[1740127393534,9.90853364,177.0,176.9,45.35683508]
[1740127393731,15.55923364,176.91,176.9,26.29815316]
[1740127394026,27.01536171,176.91,176.9,16.11810617]
[1740127394232,193.0,176.9,176.89,69.90624591]
[1740127394432,5.652,176.87,176.86,56.69604385]
[1740127394626,40.44873657,176.87,176.86,56.69604385]
[1740127394826,5.6535,176.83,176.68,15.56030425]
[1740127395029,0.58990994,176.8,176.71,271.52882529]
[1740127395227,3.67612807,176.79,176.7,271.52882529]
[1740127395423,3.67612807,176.78,176.73,271.52882529]
[1740127395624,6.96929876,176.76,176.73,271.52882529]
[1740127395829,3.67612807,176.75,176.73,271.52882529]
[1740127396027,3.67612807,176.74,176.73,271.52882529]
[1740127396228,13.29771105,176.74,176.73,271.52882529]
[1740127396424,15.55994371,176.74,176.71,15.56030425]
[1740127396630,11.88381564,176.74,176.73,161.19449979]
[1740127396934,11.88381564,176.73,176.59,15.56030425]
[1740127397133,15.56030425,176.71,176.64,161.19449979]
[1740127397336,3.67759171,176.7,176.64,98.94071868]
[1740127397534,3.7195121,176.69,176.64,98.94071868]
[1740127397734,15.56140735,176.68,176.59,4.11188779]
[1740127398026,3.67759171,176.67,176.59,4.11188779]
[1740127398231,0.03801655,176.65,176.62,5.6599]
[1740127398534,1.41445835,176.64,176.62,5.6599]
[1740127398832,1.41445835,176.63,176.59,1.26272422]
[1740127399029,16.12854127,176.62,176.59,1.26272422]
[1740127399235,1.41445835,176.61,176.59,1.26272422]
[1740127399424,11.88381564,176.6,176.59,1.26272422]
[1740127399729,1.564e-05,176.6,176.58,24.91758759]
[1740127399931,6.746e-05,176.61,176.58,24.91758759]
[1740127400928,6.746e-05,176.61,176.59,5.661]
[1740127401427,6.746e-05,176.61,176.58,24.91758759]
[1740127402133,6.746e-05,176.61,176.59,5.661]
[1740127402433,52.05086983,176.6,176.59,5.661]
[1740127402733,43.29126983,176.6,176.59,5.661]
[1740127403031,44.70660551,176.6,176.56,24.91758759]
[1740127403232,74.79649673,176.6,176.56,24.91758759]
[1740127403435,74.83538354,176.6,176.56,24.91758759]
[1740127404034,74.83538354,176.6,176.58,5.6613]
[1740127404230,74.79649673,176.6,176.58,5.6613]
[1740127404534,74.79649673,176.6,176.58,5.6612]
[1740127404828,74.79649673,176.6,176.56,24.91758759]
[1740127405231,74.83528978,176.6,176.56,24.91758759]
[1740127405633,53.54418978,176.6,176.59,24.91758759]
[1740127405931,219.1717061,176.61,176.59,24.91758759]
[1740127406128,219.1717061,176.61,176.6,24.91758759]
[1740127406934,200.3110061,176.61,176.6,24.91758759]
[1740127407231,22.69730309,176.61,176.6,30.57828759]
[1740127407437,5.42860309,176.61,176.6,30.57828759]
[1740127408434,5.6565,176.73,176.61,5.6603]
[1740127408629,7.34912413,176.72,176.6,24.91758759]
[1740127408834,3.67892413,176.71,176.6,24.91758759]
[1740127409030,3.67892413,176.7,176.6,24.91758759]
[1740127409235,1.41496176,176.69,176.6,24.91758759]
[1740127409437,1.41496176,176.68,176.6,24.91758759]
[1740127409637,0.03637646,176.66,176.63,0.03576111]
[1740127410540,6.96837429,176.65,176.63,0.03576111]
[1740127410840,1.41522318,176.64,176.63,0.03576111]
[1740127411541,8.38359747,176.64,176.63,0.03576111]
[1740127411738,27.01148703,176.69,176.63,0.03576111]
[1740127411937,6.96929876,176.67,176.63,0.03576111]
[1740127412737,6.96929876,176.67,176.63,671.852365]
[1740127412934,31.44749614,176.66,176.63,652.404565]
[1740127413132,24.93864194,176.66,176.63,652.404565]
[1740127413336,24.93864194,176.66,176.63,644.03362659]
[1740127413539,24.93864194,176.66,176.63,454.43665597]
[1740127413540,5.6594,176.64,176.63,454.43665597]
[1740127413732,5.6594,176.64,176.63,140.48336994]
[1740127413938,24.91758759,176.66,176.46,5.6651]
[1740127413939,25.48873132,176.66,176.46,5.6651]
[1740127414137,24.91758759,176.58,176.54,0.04111986]
[1740127414340,24.95379092,176.58,176.43,5.3303]
[1740127414540,24.91758759,176.58,176.54,0.03863682]
[1740127414737,0.03714138,176.52,176.45,5.6654]
[1740127414938,24.91758759,176.58,176.43,5.3303]
[1740127415139,0.03898372,176.49,176.47,0.04199203]
[1740127415340,24.91758759,176.58,176.43,5.3303]
[1740127415540,5.6642,176.49,176.46,0.03618314]
[1740127415743,24.91758759,176.58,176.43,5.3303]
[1740127415940,0.04127775,176.49,176.46,0.03667078]
[1740127416137,24.91758759,176.58,176.43,5.3303]
[1740127416342,0.03605105,176.49,176.46,0.03978264]
[1740127416644,24.91758759,176.55,176.43,5.3303]
[1740127416941,0.04237073,176.49,176.46,0.04289805]
[1740127417844,0.04237073,176.49,176.48,60.08303954]
[1740127419649,0.04237073,176.49,176.48,33.09502333]
[1740127419947,30.58008759,176.55,176.48,33.09502333]
[1740127420348,30.57858759,176.59,176.48,33.09502333]
[1740127420649,5.661,176.59,176.48,33.09502333]
[1740127420844,24.91758759,176.63,176.48,132.93497183]
[1740127421040,24.91758759,176.59,176.54,0.0401112]
[1740127421247,24.91758759,176.56,176.48,132.93497183]
[1740127421549,24.91758759,176.52,176.48,132.93497183]
[1740127422151,5.6639,176.5,176.48,132.93497183]
[1740127422351,5.6639,176.5,176.48,132.97838624]
[1740127422543,5.6639,176.5,176.48,0.04341441]
[1740127424250,5.6641,176.5,176.48,0.04341441]
[1740127424446,1.41679102,176.49,176.48,0.04341441]
[1740127424648,5.7064416,176.52,176.48,0.04341441]
[1740127424848,0.0430416,176.52,176.48,0.04341441]
[1740127425448,0.0430416,176.52,176.48,5.70781441]
[1740127425755,4.20417289,176.51,176.48,5.70781441]
[1740127426255,4.20417289,176.51,176.48,0.04341441]
[1740127427454,4.20417289,176.5,176.48,0.04341441]
[1740127427655,1.42327289,176.5,176.48,0.04341441]
[1740127428150,0.0430416,176.52,176.5,5.6638]
[1740127428552,24.91758759,176.61,176.49,1.8442]
[1740127428755,3.68217154,176.6,176.49,1.8442]
[1740127428950,3.68217154,176.59,176.49,1.8442]
[1740127429154,1.41621982,176.58,176.49,1.8442]
[1740127429358,1.41621982,176.57,176.49,1.8442]
[1740127429552,12.34976862,176.58,176.49,1.8442]
[1740127429755,0.04332628,176.55,176.53,5.6626]
[1740127429952,0.04332628,176.55,176.51,0.0411289]
[1740127430353,0.04332628,176.55,176.52,5.6629]
[1740127431157,0.04332628,176.55,176.51,5.7046289]
[1740127431351,1.41600481,176.54,176.51,5.7046289]
[1740127431558,1.41600481,176.53,176.51,5.7046289]
[1740127431752,0.04332628,176.55,176.51,5.7046289]
[1740127432061,1.41604491,176.54,176.51,5.7046289]
[1740127432250,1.41604491,176.53,176.51,5.7046289]
[1740127432450,1.41604491,176.52,176.51,5.7046289]
[1740127432652,1.41604491,176.52,176.39,49.58024548]
[1740127432958,3.68275188,176.51,176.39,49.58024548]
[1740127433150,5.6657,176.45,176.39,49.58024548]
[1740127433352,3.68275188,176.44,176.39,49.58024548]
[1740127433657,3.68275188,176.43,176.39,49.58024548]
[1740127433853,3.68275188,176.42,176.4,0.03731649]
[1740127434046,1.41604491,176.41,176.4,0.03731649]
[1740127434252,3.68322585,176.41,176.4,0.03731649]
[1740127434658,6.73680229,176.42,176.4,0.03731649]
[1740127434854,10.42124883,176.41,176.4,0.03731649]
[1740127435755,10.99704761,176.41,176.4,0.03731649]
[1740127436265,10.42124883,176.41,176.4,0.03731649]
[1740127436857,10.42124883,176.41,176.36,141.6716]
[1740127437059,3.68444654,176.4,176.36,141.6716]
[1740127437260,3.68444654,176.39,176.36,141.6716]
[1740127437456,3.68444654,176.38,176.36,147.3399]
[1740127437657,3.68444654,176.37,176.36,147.3399]
[1740127437856,10.42124883,176.37,176.36,147.3399]
[1740127438654,6.73680229,176.37,176.36,141.6716]
[1740127438960,10.42156301,176.37,176.36,141.6716]
[1740127439362,10.42156301,176.37,176.36,147.34]
[1740127439555,8.15401795,176.37,176.36,147.34]
[1740127440066,12.32093095,176.37,176.36,147.34]
[1740127441361,0.04191654,176.39,176.38,5.6677]
[1740127442061,5.6654,176.46,176.4,5.6668]
[1740127442261,1.7086,176.51,176.4,5.6668]
[1740127442952,4.25097598,176.54,176.37,24.91758759]
[1740127443158,0.04239383,176.47,176.44,0.03803944]
[1740127443354,5.6639,176.5,176.4,24.91758759]
[1740127443561,0.04211572,176.47,176.46,5.6651]
[1740127445265,1.7962,176.57,176.44,0.03708023]
[1740127445460,6.01861351,176.6,176.46,24.91758759]
[1740127445764,24.91758759,176.58,176.43,24.91758759]
[1740127445964,24.91758759,176.58,176.48,5.6644]
[1740127446166,24.91758759,176.58,176.43,24.91758759]
[1740127446464,0.0365399,176.52,176.49,0.03617022]
[1740127446670,5.7000399,176.52,176.49,0.03617022]
[1740127448357,0.0365399,176.52,176.49,0.03617022]
[1740127449966,0.0365399,176.52,176.51,5.6635]
[1740127456567,1.45250503,176.52,176.51,5.6635]
[1740127457675,5.6611,176.59,176.5,15.59205925]
[1740127457874,1.41602714,176.58,176.55,5.6622]
[1740127458078,15.59205925,176.62,176.55,5.6622]
[1740127458279,5.6607,176.6,176.55,5.6622]
[1740127458575,5.6607,176.6,176.56,5.6619]
[1740127458977,0.04130708,176.6,176.57,5.6614]
[1740127459478,0.04130708,176.6,176.56,0.04013412]
[1740127459780,0.04130708,176.6,176.56,5.70203412]
[1740127460980,0.04130708,176.6,176.56,0.04013412]
[1740127461177,15.59205925,176.59,176.56,0.04013412]
[1740127461784,5.6616,176.57,176.56,0.04013412]
[1740127462786,21.25315925,176.59,176.56,0.04013412]
[1740127462985,0.04130708,176.6,176.56,0.04013412]
[1740127463484,5.70200708,176.6,176.56,0.04013412]
[1740127464185,0.04130708,176.6,176.56,0.04013412]
[1740127465485,5.6616,176.57,176.56,0.04013412]
[1740127467282,15.59205925,176.59,176.49,140.0]
[1740127467592,15.59205925,176.59,176.51,5.6633]
[1740127467784,5.6621,176.56,176.49,140.0]
[1740127467984,15.59205925,176.59,176.49,140.0]
[1740127468384,0.03946216,176.56,176.52,0.03731077]
[1740127468582,0.03946216,176.56,176.53,5.6628]
[1740127468984,0.03946216,176.56,176.52,0.03731077]
[1740127469187,0.03946216,176.56,176.54,5.6625]
[1740127469688,1.41602304,176.55,176.54,5.6625]
[1740127469890,1.41602304,176.55,176.52,0.03731077]
[1740127470089,1.41602304,176.54,176.53,5.6629]
[1740127470593,1.41602304,176.54,176.52,0.03731077]
[1740127470789,1.41602304,176.53,176.52,0.03731077]
[1740127470984,1.41602304,176.55,176.52,0.03731077]
[1740127471185,1.41602304,176.54,176.52,5.70051077]
[1740127471384,1.41602304,176.53,176.52,5.70051077]
[1740127472892,1.41602304,176.53,176.52,0.03731077]
[1740127474085,1.41604596,176.54,176.52,0.03731077]
[1740127474290,1.41604596,176.53,176.52,0.03731077]
[1740127474484,7.07864596,176.54,176.52,0.03731077]
[1740127474682,1.41604596,176.53,176.52,0.03731077]
[1740127475290,7.07854596,176.55,176.52,0.03731077]
[1740127475492,1.41604596,176.54,176.52,0.03731077]
[1740127475684,7.07894596,176.53,176.52,0.03731077]
[1740127476286,5.6639,176.5,176.49,140.0]
[1740127476488,7.07994596,176.5,176.49,140.0]
[1740127477594,1.41604596,176.5,176.49,140.0]
[1740127478296,1.41642507,176.5,176.49,140.0]
[1740127478498,1.4164209,176.5,176.49,140.0]
[1740127480899,7.0803209,176.5,176.49,140.0]
[1740127483196,7.0803209,176.5,176.49,122.552]
[1740127484197,7.08041373,176.5,176.49,122.552]
[1740127485395,1.41651373,176.5,176.49,122.552]
[1740127486201,1.41649634,176.5,176.49,105.552]
[1740127486901,15.59205925,176.61,176.49,105.552]
[1740127487097,9.6675,176.63,176.5,15.59205925]
[1740127487401,9.6675,176.63,176.53,15.59205925]
[1740127487402,18.94707135,176.63,176.53,15.59205925]
[1740127487895,1.7875,176.63,176.53,15.59205925]
[1740127488099,0.03769452,176.6,176.56,0.03836634]
[1740127488297,0.03769452,176.6,176.56,5.70006634]
[1740127488899,0.03769452,176.6,176.57,5.6616]
[1740127489701,0.03769452,176.6,176.56,5.70026634]
[1740127490007,0.03769452,176.6,176.56,0.03836634]
[1740127490299,0.03769452,176.6,176.57,5.6615]
[1740127490701,0.03769452,176.6,176.56,0.03836634]
[1740127490903,0.03769452,176.6,176.57,5.6615]
[1740127491101,0.03769452,176.6,176.56,0.03836634]
[1740127492402,0.03769452,176.6,176.56,5.70016634]
[1740127495008,0.03769452,176.6,176.56,0.03836634]
[1740127495208,0.03769452,176.6,176.57,5.6615]
[1740127496608,0.03769452,176.6,176.56,0.03836634]
[1740127496910,0.03769452,176.6,176.58,5.6612]
[1740127497403,0.03769452,176.6,176.56,0.03836634]
[1740127497607,0.03769452,176.6,176.59,5.661]
[1740127498810,0.03769452,176.6,176.56,0.03836634]
[1740127499010,1.41566085,176.59,176.56,0.03836634]
[1740127499211,1.41566085,176.58,176.56,0.03836634]
[1740127499511,1.41566085,176.57,176.56,0.03836634]
[1740127500509,1.41566085,176.57,176.56,5.70026634]
[1740127501601,1.41565557,176.57,176.56,5.70026634]
[1740127503615,1.41571651,176.57,176.56,0.03836634]
[1740127504015,1.41571651,176.57,176.56,5.70026634]
[1740127505412,0.03769452,176.6,176.59,5.661]
[1740127505617,15.59205925,176.67,176.56,15.63042559]
[1740127505910,15.59205925,176.67,176.56,15.59205925]
[1740127506111,15.59205925,176.67,176.63,5.6595]
[1740127506713,9.96988078,176.66,176.63,0.03590891]
[1740127506910,9.96988078,176.66,176.64,5.6593]
[1740127507411,0.03927218,176.67,176.64,5.6593]
[1740127508007,0.03927218,176.67,176.64,9.96988078]
[1740127508710,0.03927218,176.67,176.64,5.6592]
[1740127509113,0.03927218,176.67,176.63,0.03590891]
[1740127509717,0.03927218,176.67,176.63,5.69560891]
[1740127511317,0.03927218,176.67,176.63,0.03590891]
[1740127511507,0.03927218,176.67,176.63,5.69560891]
[1740127511709,5.69777218,176.67,176.63,0.03590891]
[1740127512920,0.03927218,176.67,176.63,0.03590891]
[1740127513320,15.57424115,176.65,176.56,1.7635]
[1740127513521,15.57424115,176.62,176.54,5.6625]
[1740127514315,15.57424115,176.65,176.53,1.7245]
[1740127514619,0.03928418,176.6,176.57,15.57424115]
[1740127514816,7.8,176.67,176.57,15.57424115]
[1740127515119,5.659,176.66,176.6,5.6604]
[1740127515317,15.57424115,176.66,176.54,15.57424115]
[1740127516020,0.03901911,176.62,176.58,0.03883437]
[1740127516520,5.69911911,176.62,176.58,0.03883437]
[1740127516725,0.03901911,176.62,176.58,0.03883437]
[1740127516917,5.661,176.59,176.58,0.03883437]
[1740127517615,7.07685014,176.59,176.58,0.03883437]
[1740127519518,7.07687176,176.59,176.58,0.03883437]
[1740127521424,5.661,176.59,176.58,0.03883437]
[1740127521627,7.07695716,176.59,176.58,0.03883437]
[1740127522631,5.6623,176.55,176.49,121.12624115]
[1740127522835,1.41595716,176.54,176.49,121.12624115]
[1740127523035,1.41595716,176.53,176.49,121.12624115]
[1740127523334,1.41595716,176.52,176.5,5.6638]
[1740127523534,1.41595716,176.51,176.5,5.6638]
[1740127523736,5.6626,176.54,176.5,5.6638]
[1740127523737,1.45827245,176.53,176.5,5.6638]
[1740127523934,1.41595716,176.52,176.5,5.6638]
[1740127524132,1.41595716,176.51,176.5,5.6638]
[1740127524332,1.41595716,176.52,176.49,105.58775695]
[1740127524537,1.41595716,176.51,176.49,111.25185695]
[1740127524726,0.04231529,176.53,176.49,111.25185695]
[1740127524933,1.41615925,176.52,176.49,111.25185695]
[1740127525132,1.41615925,176.51,176.5,5.6639]
[1740127525634,1.41615755,176.51,176.5,5.6639]
[1740127526227,0.04231529,176.53,176.49,121.1619981]
[1740127526432,0.04231529,176.53,176.52,5.6632]
[1740127527738,15.57424115,176.63,176.52,15.57424115]
[1740127527932,7.4564,176.64,176.55,15.57424115]
[1740127528127,11.49141807,176.65,176.55,15.57424115]
[1740127528328,11.49141807,176.65,176.58,15.57424115]
[1740127528736,9.96960326,176.67,176.61,9.96960326]
[1740127528935,0.03759164,176.63,176.61,9.96960326]
[1740127531338,0.03759164,176.63,176.6,0.0379337]
[1740127534041,5.6601,176.62,176.6,0.0379337]
[1740127534736,5.69739164,176.63,176.6,0.0379337]
[1740127538940,0.03759164,176.63,176.6,0.0379337]
[1740127539136,0.03759164,176.63,176.6,5.6985337]
[1740127539737,0.03759164,176.63,176.62,5.66]
[1740127539937,0.03759164,176.63,176.61,9.96960326]
[1740127540637,0.03759164,176.63,176.6,0.0379337]
[1740127541635,0.03759164,176.63,176.61,9.96960326]
[1740127544048,0.03759164,176.63,176.62,5.66]
[1740127546547,9.96960326,176.7,176.66,5.6584]
[1740127547246,5.6565,176.73,176.68,5.6578]
[1740127547652,0.04189849,176.72,176.69,0.03927172]
[1740127549053,10.01150175,176.72,176.69,0.03927172]
[1740127549552,5.6572,176.71,176.69,0.03927172]
[1740127551346,5.69879849,176.72,176.69,0.03927172]
[1740127554050,5.6572,176.71,176.69,0.03927172]
[1740127554254,0.04189849,176.72,176.69,0.03927172]
[1740127556449,0.04189849,176.72,176.7,9.96960326]
[1740127557050,0.04189849,176.72,176.71,5.6571]
[1740127560754,0.04189849,176.72,176.7,15.62700326]
[1740127561156,0.04189849,176.72,176.7,9.96960326]
[1740127561357,0.04189849,176.72,176.7,15.62680326]
[1740127561758,0.04189849,176.72,176.7,9.96960326]
[1740127562059,0.04189849,176.72,176.7,15.62690326]
[1740127562264,0.04189849,176.72,176.7,9.96960326]
[1740127563963,0.04189849,176.72,176.71,5.6571]
[1740127567153,9.96960326,176.8,176.7,9.96960326]
[1740127567358,9.96960326,176.81,176.71,2.2139]
[1740127567558,9.96960326,176.79,176.74,9.96960326]
[1740127567760,5.655,176.78,176.74,9.96960326]
[1740127568159,9.96960326,176.79,176.74,9.96960326]
[1740127568362,5.69515113,176.78,176.74,10.00862794]
[1740127569464,0.04015113,176.78,176.76,9.96960326]
[1740127569661,0.04015113,176.78,176.77,5.6552]
[1740127570762,0.04015113,176.78,176.76,9.96960326]
[1740127574767,0.04015113,176.78,176.77,5.6552]
[1740127574965,0.04015113,176.78,176.76,9.96960326]
[1740127577269,5.69505113,176.78,176.76,9.96960326]
[1740127577960,0.04015113,176.78,176.76,9.96960326]
[1740127578163,10.00975439,176.78,176.69,9.96960326]
[1740127578470,9.96960326,176.7,176.65,115.52160326]
[1740127578673,9.96960326,176.7,176.65,105.552]
[1740127578972,9.96960326,176.68,176.65,105.552]
[1740127579368,10.00752189,176.68,176.65,105.59332977]
[1740127581369,0.03791863,176.68,176.65,105.59332977]
[1740127582170,0.03791863,176.68,176.65,115.56293303]
[1740127582570,0.03791863,176.68,176.67,15.62800326]
[1740127583071,1.863e-05,176.68,176.67,15.62800326]
[1740127583270,4.24437077,176.81,176.74,5.6561]
[1740127583271,9.96960326,176.78,176.74,5.6561]
[1740127583471,199.4291,176.82,176.73,9.96960326]
[1740127583772,9.96960326,176.8,176.75,5.6556]
[1740127583969,9.96960326,176.8,176.73,9.96960326]
[1740127584369,0.03758024,176.78,176.75,0.03755478]
[1740127585073,5.69248024,176.78,176.75,0.03755478]
[1740127585571,5.6553,176.77,176.75,0.03755478]
[1740127585767,0.03758024,176.78,176.75,0.03755478]
[1740127585971,15.59488096,176.78,176.67,15.55730072]
[1740127586274,15.55730072,176.75,176.66,2.3028]
[1740127586573,2.2375,176.74,176.65,105.552]
[1740127586875,5.6575,176.7,176.65,105.552]
[1740127587173,5.69631074,176.69,176.66,0.03800783]
[1740127587376,0.03821074,176.69,176.66,0.03800783]
[1740127587773,5.6584,176.67,176.66,0.03800783]
[1740127588573,5.6587,176.66,176.65,96.00200783]
[1740127588776,0.03821074,176.69,176.65,96.00200783]
[1740127589174,5.6582,176.68,176.65,96.00200783]
[1740127589773,5.6582,176.68,176.65,96.04559399]
[1740127590276,5.6587,176.66,176.65,96.04559399]
[1740127590480,0.03821074,176.69,176.65,96.04559399]
[1740127591070,5.6582,176.68,176.65,96.04559399]
[1740127592376,0.03821074,176.69,176.68,5.6581]
[1740127594777,0.03821074,176.69,176.65,88.20699399]
[1740127594979,0.03821074,176.69,176.67,5.6583]
[1740127596078,0.03821074,176.69,176.68,5.6581]
[1740127597384,0.03821074,176.69,176.67,21.21570072]
[1740127598783,0.03821074,176.69,176.65,93.86579399]
[1740127598987,5.69611074,176.69,176.65,86.04559399]
[1740127599178,0.03821074,176.69,176.65,86.04559399]
[1740127599481,5.6587,176.66,176.65,86.04559399]
[1740127600178,0.03821074,176.69,176.65,86.04559399]
[1740127600782,0.03821074,176.69,176.66,5.6585]
[1740127601174,0.03821074,176.69,176.65,86.04559399]
[1740127601380,0.03821074,176.69,176.67,5.6582]
[1740127605880,0.03821074,176.69,176.65,86.04559399]
[1740127606085,0.03821074,176.69,176.66,5.6586]
[1740127606286,0.03821074,176.69,176.65,86.04559399]
[1740127607087,5.69621074,176.69,176.65,91.70439399]
[1740127607593,5.6587,176.66,176.65,86.04559399]
[1740127607884,0.03821074,176.69,176.65,86.04559399]
[1740127609091,5.6586,176.67,176.65,86.04559399]